bitfinex/quotes_SOLUSD_20260114
["timestamp","ask_amount","ask_price","bid_price","bid_amount"]
[1768367848858,0.68036843,144.73,144.71,4.00906671]
[1768367849383,0.68036843,144.73,144.7,6.91083606]
[1768367849671,0.68036843,144.73,144.7,10.91990277]
[1768367850671,0.68036843,144.74,144.71,4.00906671]
[1768367851067,0.68036843,144.74,144.72,4.00906671]
[1768367851254,0.68036843,144.75,144.73,4.00906671]
[1768367851460,0.68036843,144.75,144.74,4.00906671]
[1768367851979,0.68036843,144.75,144.73,4.00906671]
[1768367852281,0.68036843,144.75,144.72,4.66996295]
[1768367853779,0.68036843,144.75,144.71,11.58018322]
[1768367853968,0.68036843,144.74,144.7,7.57152664]
[1768367854168,0.68036843,144.74,144.7,11.58059335]
[1768367857460,0.68036843,144.74,144.71,4.00906671]
[1768367859475,0.68036843,144.74,144.71,10.91943342]
[1768367860301,0.68036843,144.74,144.71,8.41943342]
[1768367860969,0.68036843,144.74,144.71,9.11390044]
[1768367861885,0.68036843,144.74,144.71,4.70353373]
[1768367862768,0.68036843,144.74,144.71,11.61386366]
[1768367863584,0.68036843,144.74,144.72,4.00906671]
[1768367864371,0.68036843,144.74,144.71,11.61386366]
[1768367867489,0.70635259,144.76,144.73,4.70353373]
[1768367867793,0.7063526,144.77,144.74,4.00906671]
[1768367867974,0.7063526,144.77,144.73,0.69446702]
[1768367868172,0.7063526,144.77,144.74,4.00906671]
[1768367869300,0.7063526,144.77,144.73,11.61263263]
[1768367870096,0.7063526,144.77,144.73,6.9090989]
[1768367870972,0.7063526,144.77,144.73,7.60356592]
[1768367875801,0.7063526,144.77,144.73,11.61263263]
[1768367876997,0.7063526,144.77,144.74,0.69446702]
[1768367877501,0.7063526,144.77,144.74,0.63446702]
[1768367879811,0.7063526,144.77,144.74,4.64353373]
[1768367880305,1e-08,144.77,144.75,0.69446702]
[1768367880604,1e-08,144.77,144.76,0.69446702]
[1768367882909,1e-08,144.77,144.75,4.70353373]
[1768367883106,1e-08,144.77,144.75,0.69446702]
[1768367884586,1e-08,144.77,144.75,0.63446702]
[1768367885407,1e-08,144.77,144.75,7.54284833]
[1768367885586,1e-08,144.77,144.75,10.10581391]
[1768367885904,1e-08,144.77,144.75,3.1974326]
[1768367886685,1e-08,144.77,144.75,0.63446702]
[1768367891212,1e-08,144.77,144.75,0.57446702]
[1768367895511,1e-08,144.77,144.75,7.48276267]
[1768367896415,1e-08,144.77,144.76,0.6623374]
[1768367896717,1e-08,144.77,144.76,0.6023374]
[1768367897396,1e-08,144.77,144.76,6.90798563]
[1768367897596,0.1,144.78,144.76,9.47095121]
[1768367898012,0.1,144.78,144.76,9.41095121]
[1768367898510,0.1,144.78,144.76,9.35095121]
[1768367898719,0.1,144.78,144.77,0.67198062]
[1768367899718,0.1,144.78,144.77,0.61198064]
[1768367900738,0.1,144.78,144.76,9.35095121]
[1768367901498,0.1,144.78,144.76,7.45996625]
[1768367901826,0.72172273,144.79,144.76,0.67198062]
[1768367902330,0.72172273,144.79,144.76,7.57993812]
[1768367904004,0.72172273,144.79,144.76,0.67198062]
[1768367904502,0.01355018,144.79,144.76,7.51990033]
[1768367908631,0.01355018,144.79,144.77,7.57919882]
[1768367911633,0.01355018,144.79,144.77,7.52669003]
[1768367917915,0.01355018,144.79,144.78,0.6114173]
[1768367918115,0.01355018,144.79,144.77,6.9072182]
[1768367920039,0.01355018,144.79,144.77,7.57863548]
[1768367923049,0.01355018,144.79,144.77,6.9072182]
[1768367923212,0.01355018,144.79,144.76,7.57923076]
[1768367928652,0.01355018,144.79,144.76,7.51923078]
[1768367936547,0.01355018,144.79,144.76,10.08219636]
[1768367938168,0.01355018,144.79,144.76,6.90781348]
[1768367939272,0.01355018,144.79,144.76,7.53147316]
[1768367941970,1e-08,144.8,144.78,0.62365968]
[1768367942154,1e-08,144.8,144.78,2.56296558]
[1768367942356,0.1,144.81,144.79,2.56296558]
[1768367942357,1e-08,144.81,144.79,2.56296558]
[1768367942864,0.81436116,144.83,144.77,12.6]
[1768367943068,0.81436116,144.83,144.78,2.56296558]
[1768367943278,0.81436116,144.83,144.78,15.16296558]
[1768367943572,0.81436116,144.83,144.79,6.90655432]
[1768367943867,0.81436116,144.83,144.79,9.4695199]
[1768367944165,0.1,144.83,144.8,0.56365969]
[1768367944374,0.1,144.83,144.81,3.06662528]
[1768367944572,0.1,144.83,144.81,2.56296558]
[1768367945470,0.1,144.83,144.81,9.46821506]
[1768367946349,0.1,144.83,144.81,9.97187476]
[1768367947375,0.1,144.83,144.81,11.40931566]
[1768367949379,1e-08,144.83,144.82,4.00040648]
[1768367949666,0.80029211,144.84,144.82,4.00040648]
[1768367950066,0.1,144.84,144.82,4.00040648]
[1768367950374,0.1,144.85,144.83,0.5036597]
[1768367952660,0.80029211,144.85,144.82,7.30864369]
[1768367952854,0.80029211,144.85,144.82,10.90539047]
[1768367953667,0.80029211,144.85,144.82,11.30905017]
[1768367954668,0.80029211,144.85,144.82,6.90498399]
[1768367955465,0.80029211,144.85,144.82,10.90539047]
[1768367956174,0.80029211,144.85,144.83,4.00040648]
[1768367956363,0.1,144.85,144.83,4.00040648]
[1768367956559,0.80029211,144.85,144.83,4.00040648]
[1768367957268,0.80029211,144.85,144.83,10.90491737]
[1768367957954,0.80029211,144.85,144.83,6.90451089]
[1768367959464,0.1,144.85,144.83,11.30857707]
[1768367959672,0.1,144.88,144.85,0.4036597]
[1768367959873,0.1,144.89,144.87,4.30406618]
[1768367960074,0.7734715,144.92,144.88,4.20406618]
[1768367960266,0.7734715,144.91,144.89,4.00040648]
[1768367960776,0.1,144.91,144.89,4.00040648]
[1768367961369,0.7734715,144.91,144.88,4.00040648]
[1768367961577,0.7734715,144.91,144.88,4.10406618]
[1768367962674,0.7734715,144.91,144.88,4.00040648]
[1768367963667,0.7734715,144.91,144.87,10.90305211]
[1768367964169,0.7734715,144.91,144.87,11.00671181]
[1768367964366,0.7734715,144.91,144.88,0.1036597]
[1768367965879,0.7734715,144.91,144.87,11.00671181]
[1768367967778,0.7734715,144.91,144.88,0.1036597]
[1768367969578,0.1,144.91,144.89,4.00040648]
[1768367969875,0.1,144.91,144.89,4.10406618]
[1768367971265,0.1,144.91,144.89,11.00561679]
[1768367971460,0.1,144.91,144.89,10.90195709]
[1768367971787,0.1,144.91,144.9,4.00040648]
[1768367972175,0.7734715,144.94,144.91,4.00040648]
[1768367972375,0.7734715,144.94,144.89,36.73601951]
[1768367972578,0.1,144.95,144.9,0.6771312]
[1768367972878,0.1,144.95,144.93,4.00040648]
[1768367973276,0.1,144.95,144.93,10.90028615]
[1768367974677,0.7734715,144.95,144.93,10.90028615]
[1768367979085,0.79694148,144.98,144.94,4.65645521]
[1768367980380,0.69694148,144.97,144.94,4.65645521]
[1768367981692,0.69694148,144.97,144.94,0.65604873]
[1768367983690,0.69694148,144.97,144.94,4.65645521]
[1768367984488,0.69694148,144.97,144.94,0.65604873]
[1768367986086,0.69694148,144.97,144.94,4.65645521]
[1768367988281,0.79694148,144.98,144.96,4.00040648]
[1768367993103,0.79694148,144.98,144.95,0.5771312]
[1768367993282,0.79694148,144.98,144.96,4.00040648]
[1768367995203,0.79694148,144.98,144.95,4.57753768]
[1768367995891,0.79694148,144.98,144.95,4.00040648]
[1768367996282,0.79694148,144.98,144.94,4.57753768]
[1768367996484,0.79694148,144.98,144.94,4.00040648]
[1768367996713,0.69694148,144.96,144.93,4.00040648]
[1768367997182,0.69694148,144.96,144.93,4.57753768]
[1768367997503,0.69694148,144.96,144.93,4.00040648]
[1768367998204,0.69694148,144.96,144.92,7.47733874]
[1768367998508,0.69694148,144.96,144.93,4.00040648]
[1768367999611,0.69694148,144.96,144.92,10.90061402]
[1768367999813,0.69694148,144.96,144.92,11.47774522]
[1768368000401,0.69694148,144.96,144.93,4.00040648]
[1768368000599,0.69694148,144.96,144.93,10.90027653]
[1768368000817,0.66694149,144.96,144.93,10.90027653]
[1768368002221,0.66694149,144.96,144.92,0.5771312]
[1768368002222,6.89845604,144.96,144.92,4.00040648]
[1768368002396,6.89797889,144.97,144.92,4.00040648]
[1768368002599,6.89797889,144.97,144.91,7.50770424]
[1768368002600,10.89838537,144.97,144.91,11.50811072]
[1768368002800,0.69694148,144.96,144.91,11.50811072]
[1768368003018,0.69694148,144.96,144.91,4.00040648]
[1768368004318,7.59576923,144.96,144.91,4.00040648]
[1768368004502,0.69694148,144.95,144.91,10.90122097]
[1768368005425,0.69694148,144.95,144.91,4.00040648]
[1768368006902,0.69694148,144.95,144.92,4.00040648]
[1768368007104,0.69694148,144.95,144.93,4.00040648]
[1768368007310,0.69694148,144.95,144.92,3.16331083]
[1768368008218,0.69694148,144.95,144.92,2.55617964]
[1768368008422,0.69694148,144.95,144.92,9.45636997]
[1768368009108,0.69694148,144.95,144.92,2.55617964]
[1768368009309,0.69694148,144.95,144.91,9.45692857]
[1768368009621,0.69694148,144.95,144.91,10.06405976]
[1768368009837,0.69694148,144.95,144.92,10.06350753]
[1768368012008,6.89829499,144.97,144.92,10.06350753]
[1768368012324,0.71066596,144.96,144.92,7.50732789]
[1768368013205,0.71066596,144.96,144.92,10.06350753]
[1768368016739,0.71066596,144.96,144.93,0.60713119]
[1768368018136,0.71066596,144.96,144.93,10.06306265]
[1768368022139,0.66393169,144.97,144.93,10.06306265]
[1768368022737,6.99771886,144.98,144.95,0.60713119]
[1768368022738,0.76393169,144.98,144.95,0.60713119]
[1768368024138,7.6614978,144.98,144.95,0.60713119]
[1768368024346,0.66393169,144.97,144.93,9.4558788]
[1768368025151,0.66393169,144.97,144.93,10.06300999]
[1768368028340,0.66393169,144.96,144.93,2.55617964]
[1768368028523,0.66393169,144.96,144.92,10.06343631]
[1768368029141,0.66393169,144.96,144.93,0.60713119]
[1768368029730,7.56193603,144.97,144.93,0.60713119]
[1768368031151,0.66393169,144.96,144.93,0.60713119]
[1768368032360,0.66393169,144.97,144.93,7.50699499]
[1768368032957,0.76393169,144.98,144.94,0.60713119]
[1768368033130,0.76393169,144.98,144.95,0.60713119]
[1768368034047,0.76393169,144.98,144.94,3.16331083]
[1768368034454,0.76393169,144.98,144.94,10.06242113]
[1768368034862,0.76393169,144.98,144.95,0.60713119]
[1768368039847,0.68796045,144.97,144.93,7.50681563]
[1768368040038,0.68796045,144.96,144.93,0.60713119]
[1768368040658,0.68796045,144.96,144.92,0.60713119]
[1768368040847,0.68796045,144.95,144.91,7.50793144]
[1768368042243,0.68796045,144.94,144.9,7.50823704]
[1768368042764,0.68796045,144.93,144.9,0.60713119]
[1768368042964,0.68796045,144.92,144.88,0.60713119]
[1768368043460,0.68796045,144.92,144.88,7.50938663]
[1768368044065,0.68796045,144.92,144.88,0.60713119]
[1768368044270,0.68796045,144.91,144.86,7.51017619]
[1768368044464,0.68796045,144.91,144.84,12.58]
[1768368044465,0.68796045,144.91,144.88,0.60713119]
[1768368048765,0.68796045,144.91,144.87,7.50977983]
[1768368048972,0.68796045,144.91,144.87,6.90264864]
[1768368050554,0.68796045,144.91,144.87,7.50977983]
[1768368050853,0.68796045,144.91,144.87,6.90264864]
[1768368051061,0.68796045,144.91,144.87,7.50977983]
[1768368052673,0.68796045,144.91,144.87,6.90264864]
[1768368053853,0.68796045,144.91,144.87,7.50977983]
[1768368055168,0.68796045,144.91,144.88,0.60713119]
[1768368056783,0.68796045,144.93,144.88,0.60713119]
[1768368057068,121.44791824,144.95,144.9,0.60713119]
[1768368057069,7.58706027,144.95,144.9,0.60713119]
[1768368057254,0.68796045,144.95,144.9,6.90100358]
[1768368057457,0.68796045,144.95,144.9,7.50813477]
[1768368057874,0.68796045,144.95,144.91,0.60713119]
[1768368058472,0.68796045,144.95,144.91,7.50792443]
[1768368058649,7.58702043,144.95,144.91,0.60713119]
[1768368058856,0.68796045,144.94,144.91,0.60713119]
[1768368059056,0.68796045,144.94,144.9,7.50822475]
[1768368059271,0.68796045,144.94,144.9,6.90109356]
[1768368059653,0.68796045,144.94,144.9,7.50822475]
[1768368059849,0.68796045,144.94,144.9,6.90109356]
[1768368061283,0.68796045,144.93,144.87,13.18713119]
[1768368061468,0.68796045,144.91,144.87,19.48251335]
[1768368061670,0.65796046,144.91,144.87,0.63713118]
[1768368062070,0.65796046,144.91,144.87,6.90270783]
[1768368062393,0.62796047,144.91,144.88,6.90224593]
[1768368062585,0.62796047,144.91,144.88,7.5693771]
[1768368062881,0.62796047,144.91,144.89,6.90163554]
[1768368063084,19.47950741,144.94,144.89,7.56876671]
[1768368064356,0.68796045,144.93,144.89,7.56876671]
[1768368064561,0.68796045,144.92,144.87,7.56958341]
[1768368064761,0.65796046,144.92,144.87,7.56958341]
[1768368064985,0.65796046,144.92,144.88,0.69713116]
[1768368066065,9.45697259,144.92,144.87,6.90245224]
[1768368066379,6.90079295,144.92,144.87,7.5995834]
[1768368066689,0.6533233,144.91,144.87,7.5995834]
[1768368067079,0.6533233,144.91,144.87,10.15576304]
[1768368067262,0.6533233,144.91,144.87,9.45863188]
[1768368067787,0.6533233,144.91,144.87,6.90245224]
[1768368068082,0.6533233,144.91,144.87,9.45863188]
[1768368068884,0.6533233,144.91,144.86,0.69713116]
[1768368068885,0.6533233,144.9,144.86,9.45920434]
[1768368069266,0.6533233,144.9,144.86,6.9030247]
[1768368069471,0.6533233,144.9,144.86,11.59724023]
[1768368071186,0.62408686,144.9,144.86,11.59724023]
[1768368072287,0.62408686,144.9,144.87,3.99708437]
[1768368072586,0.62408686,144.9,144.86,11.60548152]
[1768368076791,0.62408686,144.9,144.87,3.99708437]
[1768368079099,0.70275317,144.89,144.86,4.70245682]
[1768368079392,0.67275318,144.89,144.86,4.70245682]
[1768368079699,6.9010505,144.91,144.86,4.70245682]
[1768368081198,0.70275317,144.9,144.86,4.70245682]
[1768368081369,0.70275317,144.9,144.86,11.60567144]
[1768368083383,0.70275317,144.9,144.86,7.60858707]
[1768368083583,0.70275317,144.9,144.86,11.60567144]
[1768368084999,0.70275317,144.89,144.86,4.70245682]
[1768368085887,0.70275317,144.88,144.84,3.99708437]
[1768368087293,0.70275317,144.88,144.84,10.90090342]
[1768368087981,0.70275317,144.88,144.84,6.90381905]
[1768368088176,0.70275317,144.88,144.84,10.90090342]
[1768368089300,0.70275317,144.88,144.84,6.90381905]
[1768368089502,0.70275317,144.87,144.83,11.59890701]
[1768368090000,0.70275317,144.87,144.83,4.69447382]
[1768368090182,0.70275317,144.87,144.83,0.69738945]
[1768368091185,0.70275317,144.87,144.83,7.60200092]
[1768368091609,0.70275317,144.87,144.83,11.59908529]
[1768368092097,0.70275317,144.87,144.84,0.69738945]
[1768368092291,0.70275317,144.87,144.83,10.90169584]
[1768368092292,0.70275317,144.89,144.86,3.99708437]
[1768368092605,0.70275317,144.89,144.85,4.69447382]
[1768368093490,0.70275317,144.89,144.85,11.5980756]
[1768368097486,0.70275317,144.89,144.86,0.71645819]
[1768368099110,0.70275317,144.89,144.85,11.61714434]
[1768368101714,0.70275317,144.89,144.86,0.71645819]
[1768368103018,0.70275317,144.89,144.85,7.62005997]
[1768368103314,0.70275317,144.89,144.85,11.61714434]
[1768368104598,0.70275317,144.89,144.83,17.26161706]
[1768368104599,0.6576111,144.88,144.84,11.61749614]
[1768368104918,0.6576111,144.88,144.84,7.62041177]
[1768368105216,0.6576111,144.88,144.84,11.61749614]
[1768368107003,0.6576111,144.88,144.85,7.62011302]
[1768368108613,0.6576111,144.87,144.83,7.62069606]
[1768368109411,6.90229469,144.88,144.79,0.10186298]
[1768368109412,0.6576111,144.83,144.79,0.10186298]
[1768368110626,0.6576111,144.83,144.79,4.81540554]
[1768368110932,0.6576111,144.83,144.79,11.72189467]
[1768368112121,0.6576111,144.83,144.79,7.7248103]
[1768368113210,0.6576111,144.83,144.79,11.72189467]
[1768368113903,0.6576111,144.83,144.79,7.7248103]
[1768368115120,0.6576111,144.83,144.79,11.72189467]
[1768368118427,0.6576111,144.81,144.79,0.10186298]
[1768368118736,0.6576111,144.81,144.79,0.04186298]
[1768368118923,0.6576111,144.81,144.78,0.2]
[1768368119327,0.6576111,144.81,144.78,0.14]
[1768368119713,0.6576111,144.81,144.78,0.08]
[1768368121337,0.6576111,144.8,144.78,0.08]
[1768368121713,6.90609923,144.8,144.76,0.2]
[1768368121914,0.6576111,144.79,144.73,20.40555599]
[1768368122114,0.6576111,144.79,144.73,0.2]
[1768368122315,10.9031836,144.8,144.68,0.71645819]
[1768368122316,0.6576111,144.76,144.68,0.71645819]
[1768368122532,4.65469547,144.76,144.7,0.71645819]
[1768368122738,12.58,144.78,144.7,4.71354256]
[1768368122739,0.6576111,144.77,144.7,4.71354256]
[1768368122936,0.6576111,144.76,144.7,4.71354256]
[1768368123140,4.65469547,144.76,144.7,0.71645819]
[1768368123320,0.6576111,144.74,144.7,0.71645819]
[1768368123824,0.6576111,144.74,144.7,4.71354256]
[1768368124223,0.6576111,144.76,144.72,4.71354256]
[1768368124428,0.6576111,144.76,144.73,4.71354256]
[1768368125445,0.71681747,144.77,144.73,4.71354256]
[1768368126327,0.71681747,144.77,144.73,0.71645819]
[1768368127332,0.71681747,144.76,144.72,3.99708437]
[1768368127532,0.71681747,144.76,144.72,4.65251763]
[1768368127838,0.71681747,144.76,144.72,11.56235057]
[1768368128036,0.71681747,144.76,144.71,7.56561786]
[1768368128238,0.71681747,144.76,144.72,3.99708437]
[1768368128422,0.71681747,144.76,144.64,71.44885192]
[1768368128621,24.17635925,144.77,144.68,0.65543326]
[1768368128622,0.71681747,144.72,144.68,0.65543326]
[1768368129020,6.91037246,144.71,144.68,0.65543326]
[1768368129254,0.71681747,144.71,144.68,0.65543326]
[1768368131236,21.2704523,144.74,144.69,4.65251763]
[1768368131237,7.62611299,144.74,144.69,4.65251763]
[1768368131434,20.22611299,144.74,144.7,3.21995258]
[1768368131635,20.22611299,144.74,144.7,3.15995258]
[1768368132050,0.71681747,144.73,144.68,0.65543326]
[1768368132229,0.71681747,144.73,144.66,6.91243932]
[1768368132230,0.71681747,144.71,144.67,0.65543326]
[1768368132727,0.71681747,144.7,144.66,0.65543326]
[1768368133329,0.71681747,144.7,144.66,3.21995258]
[1768368133751,0.71681747,144.7,144.66,0.65543326]
[1768368134150,7.6276893,144.7,144.66,0.65543326]
[1768368134747,7.6276893,144.7,144.62,0.65543326]
[1768368134748,0.71681747,144.66,144.62,0.65543326]
[1768368134938,0.71681747,144.65,144.61,0.85543326]
[1768368137058,0.71681747,144.65,144.61,7.77055465]
[1768368137231,12.6,144.69,144.61,7.77055465]
[1768368137232,0.71681747,144.71,144.64,2.56451932]
[1768368137553,0.71681747,144.71,144.63,0.65543326]
[1768368137554,0.71681747,144.68,144.63,2.56451932]
[1768368138057,0.71681747,144.68,144.61,24.40299913]
[1768368138355,2.56451932,144.69,144.61,24.40299913]
[1768368138356,0.66687398,144.63,144.61,0.2]
[1768368138560,0.66687398,144.67,144.61,9.67956176]
[1768368138737,0.66687398,144.65,144.61,9.67956176]
[1768368138933,0.66687398,144.65,144.61,2.76451932]
[1768368139140,0.66687398,144.65,144.61,0.2]
[1768368139835,0.66687398,144.65,144.61,2.76451932]
[1768368140153,0.66687398,144.65,144.63,2.56451932]
[1768368140348,0.66687398,144.65,144.62,2.56451932]
[1768368140535,0.66687398,144.64,144.61,0.2]
[1768368140742,0.66687398,144.64,144.61,2.76451932]
[1768368141059,0.66687398,144.64,144.6,0.2]
[1768368141060,0.66687398,144.62,144.6,0.2]
[1768368141550,0.66687398,144.63,144.6,2.76451932]
[1768368142254,0.66687398,144.65,144.6,7.82114985]
[1768368142455,0.66687398,144.65,144.61,2.56451932]
[1768368142654,0.66687398,144.65,144.6,0.2]
[1768368142829,22.07737889,144.66,144.58,0.90559027]
[1768368142830,0.66687398,144.62,144.58,2.76451932]
[1768368143032,0.66687398,144.62,144.59,2.56451932]
[1768368143227,0.66687398,144.64,144.6,3.27010959]
[1768368144148,0.66687398,144.64,144.6,0.70559027]
[1768368144345,0.66687398,144.64,144.6,3.27010959]
[1768368144655,0.66687398,144.64,144.61,2.56451932]
[1768368145352,0.66687398,144.62,144.58,0.90559027]
[1768368145552,0.66687398,144.61,144.58,0.14]
[1768368145753,0.66687398,144.61,144.58,2.70451932]
[1768368146744,0.66687398,144.62,144.59,2.56451932]
[1768368146946,0.66687398,144.62,144.58,7.76192759]
[1768368147152,0.66687398,144.62,144.59,2.56451932]
[1768368147334,0.66687398,144.62,144.58,0.14]
[1768368147541,0.66687398,144.62,144.59,2.56451932]
[1768368148453,0.66687398,144.62,144.59,2.50451932]
[1768368148760,0.66687398,144.63,144.61,2.56451932]
[1768368148963,0.66687398,144.63,144.59,0.70559027]
[1768368149179,0.66687398,144.63,144.58,0.14]
[1768368149348,0.66687398,144.63,144.59,2.56451932]
[1768368149665,0.66687398,144.63,144.59,2.50451934]
[1768368150266,0.66687398,144.63,144.58,2.70451932]
[1768368151163,0.66687398,144.61,144.58,0.14]
[1768368152457,0.55119083,144.59,144.56,0.2]
[1768368152960,0.26971715,144.58,144.53,2.56451932]
[1768368153158,7.18663109,144.58,144.54,2.56451932]
[1768368153367,0.54837609,144.57,144.54,2.56451932]
[1768368153570,0.15519083,144.6,144.56,3.27010959]
[1768368153864,0.15519083,144.6,144.57,2.56451932]
[1768368154272,0.15519083,144.6,144.54,0.70559027]
[1768368154443,0.15519083,144.6,144.54,3.27010959]
[1768368154645,0.15519083,144.6,144.55,2.56451932]
[1768368154951,39.3675536,144.61,144.52,3.47010959]
[1768368154952,0.16025649,144.58,144.52,3.47010959]
[1768368155145,6.91706439,144.57,144.54,2.56451932]
[1768368155347,0.65674215,144.57,144.53,3.24293278]
[1768368155662,0.67883305,144.59,144.55,2.56451932]
[1768368155861,0.67883305,144.59,144.56,2.56451932]
[1768368156245,12.6,144.6,144.57,2.56451932]
[1768368156641,12.6,144.6,144.54,6.9184508]
[1768368156642,12.6,144.62,144.58,3.24293278]
[1768368156863,12.74335135,144.62,144.58,3.24293278]
[1768368157269,0.67347823,144.61,144.54,6.91844665]
[1768368157560,0.14865262,144.6,144.55,0.67841346]
[1768368157764,0.14865262,144.6,144.56,0.67841346]
[1768368157956,0.14865262,144.6,144.56,3.24293278]
[1768368158152,0.14865262,144.6,144.56,7.59578347]
[1768368158463,22.07925566,144.62,144.57,3.24293278]
[1768368158464,0.67883305,144.61,144.57,3.24293278]
[1768368158854,0.67883305,144.61,144.57,10.15986426]
[1768368159053,20.19356939,144.62,144.57,7.59534494]
[1768368159251,20.19356939,144.62,144.57,10.15986426]
[1768368159451,0.67883305,144.62,144.58,3.24293278]
[1768368159657,0.67883305,144.62,144.59,2.56451932]
[1768368159860,20.19285018,144.64,144.59,3.24293278]
[1768368160071,0.67347823,144.62,144.57,0.67841346]
[1768368160273,0.67347823,144.62,144.57,3.24293278]
[1768368160456,0.67347823,144.62,144.58,0.67841346]
[1768368160656,0.67347823,144.62,144.58,3.24293278]
[1768368160971,37.47714221,144.64,144.61,2.56451932]
[1768368161173,37.47714221,144.64,144.6,2.56451932]
[1768368161563,20.19285018,144.64,144.6,2.56451932]
[1768368161770,20.19285018,144.64,144.59,0.67841346]
[1768368161771,13.27883305,144.65,144.61,3.24293278]
[1768368161955,13.27883305,144.65,144.61,0.67841346]
[1768368162150,20.1920719,144.65,144.62,2.56451932]
[1768368162367,12.6,144.65,144.62,2.56451932]
[1768368162672,0.14865262,144.64,144.57,0.67841346]
[1768368162870,0.14865262,144.64,144.6,2.56451932]
[1768368163669,7.58242482,144.63,144.6,2.56451932]
[1768368164672,134.08373104,144.65,144.61,2.56451932]
[1768368164673,6.91382127,144.64,144.61,2.56451932]
[1768368164853,12.6,144.65,144.61,0.67841346]
[1768368165054,36.79644169,144.65,144.57,0.67841346]
[1768368165259,36.79644169,144.65,144.55,19.85904929]
[1768368165260,0.67883305,144.64,144.59,2.56451932]
[1768368165458,0.67883305,144.64,144.6,2.56451932]
[1768368165667,7.05754619,144.63,144.6,2.56451932]
[1768368166153,7.05754619,144.63,144.6,2.50451939]
[1768368166353,7.05754619,144.63,144.59,0.67841346]
[1768368166767,7.05754619,144.63,144.59,3.24293278]
[1768368167261,7.05754619,144.63,144.6,2.56451932]
[1768368167464,0.67347823,144.62,144.57,0.67841346]
[1768368167662,0.14865262,144.61,144.58,2.56451932]
[1768368169175,0.67347823,144.61,144.57,2.56451932]
[1768368169362,0.67347823,144.61,144.55,0.67841346]
[1768368169567,0.14865262,144.59,144.56,2.56451932]
[1768368169768,0.14865262,144.59,144.57,2.56451932]
[1768368169983,7.05898067,144.6,144.57,2.56451932]
[1768368170565,7.05898067,144.6,144.58,2.56451932]
[1768368170768,7.05898067,144.6,144.57,2.56451932]
[1768368171260,7.05898067,144.6,144.56,3.24293278]
[1768368171864,7.05898067,144.6,144.56,0.67841346]
[1768368172069,7.05898067,144.6,144.56,3.24293278]
[1768368172303,0.67883305,144.58,144.54,2.56451932]
[1768368172582,0.67883305,144.58,144.55,2.56451932]
[1768368172781,0.67883305,144.58,144.56,2.56451932]
[1768368173158,0.67883305,144.58,144.52,0.2]
[1768368173159,22.08076167,144.59,144.53,2.56451932]
[1768368173782,19.51624235,144.59,144.53,2.56451932]
[1768368174080,22.75959472,144.59,144.53,9.48329819]
[1768368174285,22.75959472,144.59,144.54,0.67841346]
[1768368174487,20.1950754,144.59,144.54,0.67841346]
[1768368174668,12.6,144.59,144.55,0.67841346]
[1768368174868,0.67883305,144.62,144.57,0.67841346]
[1768368175184,22.75825417,144.62,144.57,0.67841346]
[1768368176162,0.67883305,144.61,144.54,6.91821142]
[1768368176362,0.67883305,144.61,144.56,0.67841346]
[1768368176363,2.56451932,144.6,144.56,0.67841346]
[1768368176672,0.67883305,144.61,144.56,0.67841346]
[1768368176673,3.24335237,144.61,144.56,0.67841346]
[1768368176873,12.6,144.61,144.57,0.67841346]
[1768368177277,12.6,144.61,144.57,7.59530948]
[1768368177587,19.51521322,144.61,144.57,0.67841346]
[1768368178586,22.75856559,144.61,144.57,0.67841346]
[1768368178787,40.04644333,144.61,144.57,0.67841346]
[1768368178987,0.67883305,144.6,144.57,0.67841346]
[1768368179185,7.5947125,144.6,144.55,0.67841346]
[1768368179385,10.15923182,144.6,144.55,0.67841346]
[1768368179584,7.5947125,144.6,144.55,3.24293278]
[1768368179770,7.5947125,144.6,144.56,0.67841346]
[1768368180487,0.67883305,144.59,144.55,0.67841346]
[1768368180689,0.67883305,144.59,144.54,3.24293278]
[1768368180866,0.67883305,144.58,144.52,0.87841346]
[1768368181066,0.67883305,144.56,144.52,0.87841346]
[1768368181966,3.24335237,144.56,144.52,0.87841346]
[1768368182361,0.67883305,144.56,144.52,0.87841346]
[1768368182593,0.67883305,144.57,144.53,0.67841346]
[1768368183368,22.08128002,144.58,144.5,0.67841346]
[1768368183369,3.24335237,144.55,144.5,0.67841346]
[1768368183573,0.67883305,144.55,144.51,0.67841346]
[1768368184833,0.67883305,144.55,144.51,3.24293278]
[1768368184981,0.67883305,144.55,144.51,0.67841346]
[1768368185298,0.65643289,144.56,144.52,0.66755914]
[1768368185792,0.65643289,144.56,144.49,17.30161421]
[1768368185793,0.65643289,144.55,144.5,0.66755914]
[1768368186290,6.91850006,144.54,144.5,0.66755914]
[1768368186480,7.57493295,144.54,144.5,0.66755914]
[1768368186688,0.65643289,144.53,144.48,0.66755914]
[1768368187099,3.22095221,144.51,144.46,0.66755914]
[1768368187698,0.65643289,144.51,144.47,0.66755914]
[1768368188079,0.65643289,144.51,144.47,7.58939248]
[1768368188275,10.14099103,144.51,144.47,0.66755914]
[1768368188478,3.22095221,144.51,144.47,0.66755914]